fUST/lending_fUST_20250717
["ID","MTS","AMOUNT","RATE_DAILY","PERIOD"]
[372636484,1752723032563,-439.71594308,0.00018162,2]
[372636486,1752723032572,-460.0,0.00018162,2]
[372636488,1752723032582,-460.0,0.00018162,2]
[372636491,1752723032591,-460.0,0.00018162,2]
[372636494,1752723032601,-460.0,0.00018162,2]
[372636496,1752723032611,-460.0,0.00018162,2]
[372636497,1752723032620,-460.0,0.00018162,2]
[372636499,1752723032629,-460.0,0.00018162,2]
[372636501,1752723032638,-460.0,0.00018162,2]
[372636502,1752723032648,-473.71,0.00018162,2]
[372636504,1752723032657,-2785.57,0.00018162,2]
[372636505,1752723032666,-460.97199399,0.00018162,2]
[372636506,1752723032675,-460.0,0.00018162,2]
[372636507,1752723032684,-462.42371584,0.00018162,2]
[372636508,1752723032694,-460.0,0.00018162,2]
[372636509,1752723032704,-460.0,0.00018162,2]
[372636510,1752723032714,-166.91821119,0.00018162,2]
[372636511,1752723032723,-460.0,0.00018162,2]
[372636512,1752723032732,-194.45242122,0.00018163,2]
[372636513,1752723032745,-460.0,0.00018163,2]
[372636514,1752723032754,-460.0,0.00018163,2]
[372636515,1752723032764,-460.0,0.00018163,2]
[372636516,1752723032773,-460.0,0.00018163,2]
[372636517,1752723032782,-460.0,0.00018163,2]
[372636518,1752723032792,-150.50456212,0.00018163,2]
[372636519,1752723032802,-460.0,0.00018163,2]
[372636520,1752723032812,-460.0,0.00018163,2]
[372636521,1752723032822,-460.0,0.00018163,2]
[372636522,1752723032832,-460.0,0.00018163,2]
[372636523,1752723032841,-460.0,0.00018163,2]
[372636524,1752723032851,-460.0,0.00018163,2]
[372636525,1752723032860,-460.0,0.00018163,2]
[372636526,1752723032869,-462.51019379,0.00018163,2]
[372636527,1752723032879,-460.0,0.00018163,2]
[372636528,1752723032888,-412.51747007,0.00018163,2]
[372636529,1752723032897,-460.0,0.00018163,2]
[372636530,1752723032907,-460.0,0.00018163,2]
[372636531,1752723032916,-279.56658487,0.00018163,2]
[372636532,1752723032929,-187.23052334,0.00018163,2]
[372636533,1752723032938,-399.75694396,0.00018163,2]
[372636534,1752723032950,-60.24305604,0.00018163,2]
[372636535,1752723032960,-460.0,0.00018163,2]
[372636536,1752723032969,-460.0,0.00018163,2]
[372636537,1752723032978,-460.0,0.00018163,2]
[372636538,1752723032990,-460.0,0.00018163,2]
[372636539,1752723032999,-202.07786949,0.00018163,2]
[372636540,1752723033010,-460.0,0.00018163,2]
[372636541,1752723033019,-460.0,0.00018163,2]
[372636542,1752723033030,-460.0,0.00018163,2]
[372636543,1752723033039,-500.0,0.00018163,2]
[372636544,1752723033049,-500.0,0.00018163,2]
[372636545,1752723033059,-460.0,0.00018163,2]
[372636546,1752723033070,-460.0,0.00018163,2]
[372636547,1752723033080,-460.0,0.00018163,2]
[372636548,1752723033090,-460.0,0.00018163,2]
[372636549,1752723033099,-460.0,0.00018163,2]
[372636550,1752723033110,-463.51880247,0.00018163,2]
[372636551,1752723033120,-2045.43,0.00018163,2]
[372636552,1752723033133,-460.0,0.00018163,2]
[372636553,1752723033143,-627.8,0.00018163,2]
[372636554,1752723033152,-460.0,0.00018163,2]
[372636555,1752723033162,-460.0,0.00018163,2]
[372636556,1752723033173,-2752.18187855,0.00018163,2]
[372636557,1752723033185,-900.1571553,0.00018163,2]
[372636558,1752723033197,-1004.25000015,0.00018163,2]
[372636559,1752723033210,-1991.420966,0.00018163,2]
[372636560,1752723033220,-951.3,0.00018163,2]
[372636561,1752723033230,-460.0,0.00018163,2]
[372636562,1752723033243,-460.0,0.00018163,2]
[372636563,1752723033253,-460.0,0.00018163,2]
[372636564,1752723033263,-460.0,0.00018163,2]
[372636565,1752723033273,-71.44595374,0.00018163,2]
[372636616,1752723038345,-283.3946313,0.00018163,2]
[372636628,1752723038450,-105.15941496,0.00018163,2]
[372636630,1752723038460,-460.0,0.00018163,2]
[372636632,1752723038469,-609.34058504,0.00018163,2]
[372636636,1752723038506,-3043.44941496,0.00018163,2]
[372636638,1752723038516,-500.89911758,0.00018163,2]
[372636640,1752723038526,-460.0,0.00018163,2]
[372636642,1752723038535,-845.11,0.00018163,2]
[372636644,1752723038544,-1035.96,0.00018163,2]
[372636646,1752723038554,-460.0,0.00018163,2]
[372636648,1752723038563,-460.0,0.00018163,2]
[372636650,1752723038572,-460.0,0.00018163,2]
[372636652,1752723038581,-460.0,0.00018163,2]
[372636655,1752723038590,-460.0,0.00018163,2]
[372636658,1752723038599,-460.0,0.00018163,2]
[372636661,1752723038609,-460.0,0.00018163,2]
[372636664,1752723038618,-620.11,0.00018163,2]
[372636666,1752723038627,-460.32554379,0.00018163,2]
[372636669,1752723038637,-684.65,0.00018163,2]
[372636672,1752723038646,-3024.44,0.00018163,2]
[372636674,1752723038655,-460.0,0.00018163,2]
[372636676,1752723038665,-460.0,0.00018163,2]
[372636678,1752723038674,-460.98812203,0.00018163,2]
[372636680,1752723038683,-460.0,0.00018163,2]
[372636682,1752723038693,-460.0,0.00018163,2]
[372636684,1752723038703,-3191.81,0.00018163,2]
[372636686,1752723038712,-759.64,0.00018163,2]
[372636688,1752723038721,-460.0,0.00018163,2]
[372636690,1752723038731,-460.0,0.00018163,2]
[372636692,1752723038740,-1269.72,0.00018163,2]
[372636694,1752723038750,-460.0,0.00018163,2]
[372636696,1752723038759,-460.0,0.00018163,2]
[372636698,1752723038768,-500.0,0.00018163,2]
[372636700,1752723038777,-500.0,0.00018163,2]
[372636702,1752723038787,-460.0,0.00018163,2]
[372636704,1752723038796,-784.55,0.00018163,2]
[372636706,1752723038805,-500.0,0.00018163,2]
[372636708,1752723038815,-500.0,0.00018163,2]
[372636710,1752723038824,-460.0,0.00018163,2]
[372636712,1752723038835,-460.0,0.00018163,2]
[372636714,1752723038844,-460.0,0.00018163,2]
[372636716,1752723038853,-460.0,0.00018163,2]
[372636718,1752723038863,-460.0,0.00018163,2]
[372636720,1752723038872,-460.0,0.00018163,2]
[372636722,1752723038882,-464.95600105,0.00018163,2]
[372636724,1752723038891,-460.0,0.00018163,2]
[372636726,1752723038900,-460.0,0.00018163,2]
[372636728,1752723038909,-460.0,0.00018163,2]
[372636730,1752723038919,-2191.17,0.00018163,2]
[372636732,1752723038928,-460.0,0.00018163,2]
[372636734,1752723038937,-460.0,0.00018163,2]
[372636736,1752723038946,-460.8787277,0.00018163,2]
[372636738,1752723038956,-460.0,0.00018163,2]
[372636740,1752723038966,-852.47,0.00018163,2]
[372636742,1752723038975,-650.53,0.00018163,2]
[372636744,1752723038984,-460.0,0.00018163,2]
[372636745,1752723038995,-460.0,0.00018164,2]
[372636748,1752723039006,-473.26,0.00018164,2]
[372636750,1752723039016,-460.0,0.00018164,2]
[372636752,1752723039026,-460.3624882,0.00018164,2]
[372636753,1752723039035,-460.0,0.00018164,2]
[372636755,1752723039044,-460.0,0.00018164,2]
[372636757,1752723039054,-460.0,0.00018164,2]
[372636759,1752723039063,-460.0,0.00018164,2]
[372636761,1752723039073,-460.0,0.00018164,2]
[372636763,1752723039082,-424.25015195,0.00018164,2]
[372636765,1752723039091,-462.93732799,0.00018164,2]
[372636767,1752723039100,-462.37111246,0.00018164,2]
[372636769,1752723039110,-460.0,0.00018164,2]
[372636771,1752723039120,-460.0,0.00018164,2]
[372636773,1752723039133,-709.98,0.00018164,2]
[372636775,1752723039143,-460.0,0.00018164,2]
[372636777,1752723039152,-460.0,0.00018164,2]
[372636779,1752723039162,-460.0,0.00018164,2]
[372636781,1752723039171,-460.0,0.00018164,2]
[372636783,1752723039181,-460.0,0.00018164,2]
[372636786,1752723039191,-716.64,0.00018164,2]
[372636788,1752723039201,-460.0,0.00018164,2]
[372636790,1752723039212,-460.0,0.00018164,2]
[372636792,1752723039222,-523.07,0.00018164,2]
[372636794,1752723039231,-460.0,0.00018164,2]
[372636795,1752723039243,-599.92,0.00018164,2]
[372636798,1752723039253,-460.0,0.00018164,2]
[372636800,1752723039263,-460.0,0.00018164,2]
[372636802,1752723039273,-821.65,0.00018164,2]
[372636804,1752723039282,-460.0,0.00018164,2]
[372636806,1752723039292,-460.0,0.00018164,2]
[372636808,1752723039302,-460.0,0.00018164,2]
[372636810,1752723039311,-460.0,0.00018164,2]
[372636812,1752723039321,-460.0,0.00018164,2]
[372636814,1752723039330,-460.0,0.00018164,2]
[372636816,1752723039339,-1054.76,0.00018164,2]
[372636817,1752723039348,-460.0,0.00018164,2]
[372636819,1752723039359,-460.0,0.00018164,2]
[372636821,1752723039369,-460.0,0.00018164,2]
[372636823,1752723039378,-460.0,0.00018164,2]
[372636825,1752723039387,-460.0,0.00018164,2]
[372636827,1752723039398,-460.0,0.00018164,2]
[372636830,1752723039408,-460.0,0.00018164,2]
[372636832,1752723039417,-460.0,0.00018164,2]
[372636834,1752723039426,-460.0,0.00018164,2]
[372636835,1752723039435,-460.0,0.00018164,2]
[372636837,1752723039445,-460.0,0.00018164,2]
[372636840,1752723039454,-460.0,0.00018164,2]
[372636841,1752723039464,-460.0,0.00018164,2]
[372636844,1752723039475,-460.0,0.00018164,2]
[372636846,1752723039484,-460.0,0.00018164,2]
[372636847,1752723039494,-460.0,0.00018164,2]
[372636849,1752723039504,-373.28077065,0.00018164,2]
[372636851,1752723039513,-460.0,0.00018164,2]
[372636853,1752723039523,-449.36653433,0.00018164,2]
[372636854,1752723039531,-461.87348327,0.00018164,2]
[372636855,1752723039540,-460.0,0.00018164,2]
[372636856,1752723039549,-460.0,0.00018164,2]
[372636857,1752723039558,-460.0,0.00018164,2]
[372636858,1752723039567,-460.0,0.00018164,2]
[372636859,1752723039577,-460.0,0.00018164,2]
[372636860,1752723039587,-460.0,0.00018164,2]
[372636861,1752723039596,-877.34,0.00018164,2]
[372636862,1752723039605,-460.0,0.00018164,2]
[372636863,1752723039615,-460.0,0.00018164,2]
[372636864,1752723039623,-539.33,0.00018164,2]
[372636865,1752723039633,-460.0,0.00018164,2]
[372636866,1752723039642,-460.0,0.00018164,2]
[372636867,1752723039651,-460.0,0.00018164,2]
[372636868,1752723039660,-460.0,0.00018164,2]
[372636869,1752723039669,-460.0,0.00018164,2]
[372636870,1752723039678,-460.0,0.00018164,2]
[372636871,1752723039688,-460.0,0.00018164,2]
[372636873,1752723039697,-460.0,0.00018164,2]
[372636874,1752723039706,-460.0,0.00018164,2]
[372636875,1752723039716,-658.6,0.00018164,2]
[372636876,1752723039726,-461.54909436,0.00018164,2]
[372636877,1752723039735,-460.0,0.00018164,2]
[372636878,1752723039746,-4365.85,0.00018164,2]
[372636879,1752723039757,-460.0,0.00018164,2]
[372636880,1752723039768,-460.0,0.00018164,2]
[372636881,1752723039780,-460.0,0.00018164,2]
[372636882,1752723039794,-460.0,0.00018164,2]
[372636883,1752723039806,-460.0,0.00018164,2]
[372636884,1752723039815,-460.0,0.00018164,2]
[372636885,1752723039824,-460.0,0.00018164,2]
[372636886,1752723039833,-460.0,0.00018164,2]
[372636887,1752723039842,-460.0,0.00018164,2]
[372636889,1752723039854,-460.0,0.00018164,2]
[372636892,1752723039863,-601.21,0.00018164,2]
[372636895,1752723039873,-1353.14,0.00018164,2]
[372636897,1752723039883,-460.0,0.00018164,2]
[372636899,1752723039892,-595.98,0.00018164,2]
[372636901,1752723039901,-460.0,0.00018164,2]
[372636903,1752723039911,-460.0,0.00018164,2]
[372636905,1752723039921,-460.0,0.00018164,2]
[372636907,1752723039931,-500.0,0.00018164,2]
[372636909,1752723039940,-460.0,0.00018164,2]
[372636911,1752723039950,-198.41415332,0.00018164,2]
[372636914,1752723039960,-151.0,0.00018164,2]
[372636916,1752723039970,-460.0,0.00018164,2]
[372636918,1752723039979,-151.55193473,0.00018164,2]
[372636920,1752723039989,-500.0,0.00018164,2]
[372636921,1752723040000,-460.75468206,0.00018164,2]
[372636922,1752723040009,-2332.6,0.00018164,2]
[372636923,1752723040019,-460.0,0.00018164,2]
[372636924,1752723040028,-609.05,0.00018164,2]
[372636925,1752723040038,-460.0,0.00018164,2]
[372636926,1752723040048,-460.0,0.00018164,2]
[372636927,1752723040058,-460.0,0.00018164,2]
[372636928,1752723040068,-5166.37,0.00018164,2]
[372636929,1752723040077,-645.82,0.00018164,2]
[372636930,1752723040087,-572.81838991,0.00018164,2]
[372636931,1752723040096,-943.64,0.00018164,2]
[372636932,1752723040105,-460.0,0.00018164,2]
[372636933,1752723040115,-460.0,0.00018164,2]
[372636934,1752723040126,-500.0,0.00018164,2]
[372636935,1752723040136,-460.0,0.00018164,2]
[372636936,1752723040145,-460.0,0.00018164,2]
[372636937,1752723040154,-460.0,0.00018164,2]
[372636938,1752723040164,-1177.83,0.00018164,2]
[372636939,1752723040174,-460.0,0.00018164,2]
[372636940,1752723040183,-460.0,0.00018164,2]
[372636941,1752723040193,-460.0,0.00018164,2]
[372636942,1752723040203,-460.25135505,0.00018164,2]
[372636943,1752723040213,-460.93386622,0.00018164,2]
[372636944,1752723040222,-275.13376658,0.00018164,2]
[372636945,1752723040231,-460.0,0.00018164,2]
[372636946,1752723040241,-2795.97,0.00018164,2]
[372636947,1752723040251,-460.0,0.00018164,2]
[372636948,1752723040260,-460.0,0.00018165,2]
[372636949,1752723040270,-460.0,0.00018165,2]
[372636950,1752723040279,-460.0,0.00018165,2]
[372636951,1752723040288,-460.0,0.00018165,2]
[372636952,1752723040298,-460.0,0.00018165,2]
[372636953,1752723040307,-460.0,0.00018165,2]
[372636954,1752723040317,-460.0,0.00018165,2]
[372636955,1752723040327,-615.04,0.00018165,2]
[372636956,1752723040336,-460.0,0.00018165,2]
[372636957,1752723040346,-460.0,0.00018165,2]
[372636958,1752723040356,-1739.23,0.00018165,2]
[372636959,1752723040366,-500.0,0.00018165,2]
[372636960,1752723040375,-517.61989336,0.00018165,2]
[372636961,1752723040385,-5170.55,0.00018165,2]
[372636962,1752723040394,-1736.7,0.00018165,2]
[372636963,1752723040404,-460.0,0.00018165,2]
[372636964,1752723040413,-508.45226895,0.00018165,2]
[372636965,1752723040422,-500.0,0.00018165,2]
[372636966,1752723040432,-513.41963466,0.00018165,2]
[372636967,1752723040441,-461.83957333,0.00018166,2]
[372636968,1752723040452,-460.0,0.00018166,2]
[372636969,1752723040462,-460.0,0.00018166,2]
[372636970,1752723040471,-292.36008665,0.00018166,2]
[372636971,1752723040481,-460.0,0.00018166,2]
[372636972,1752723040491,-460.0,0.00018166,2]
[372636973,1752723040500,-460.0,0.00018166,2]
[372636974,1752723040510,-460.0,0.00018166,2]
[372636975,1752723040520,-460.0,0.00018166,2]
[372636976,1752723040530,-460.0,0.00018166,2]
[372636977,1752723040539,-460.0,0.00018166,2]
[372636978,1752723040548,-461.16980406,0.00018166,2]
[372636979,1752723040558,-460.0,0.00018166,2]
[372636980,1752723040567,-460.0,0.00018166,2]
[372636981,1752723040577,-460.0,0.00018166,2]
[372636982,1752723040587,-500.0,0.00018166,2]
[372636983,1752723040596,-460.0,0.00018166,2]
[372636984,1752723040605,-460.0,0.00018166,2]
[372636985,1752723040615,-460.0,0.00018166,2]
[372636986,1752723040625,-460.0,0.00018166,2]
[372636987,1752723040634,-460.98580716,0.00018166,2]
[372636988,1752723040644,-460.0,0.00018166,2]
[372636989,1752723040654,-460.0,0.00018166,2]
[372636990,1752723040663,-460.0,0.00018166,2]
[372636991,1752723040673,-935.6,0.00018166,2]
[372636992,1752723040683,-460.0,0.00018166,2]
[372636993,1752723040692,-460.0,0.00018166,2]
[372636994,1752723040701,-460.0,0.00018166,2]
[372636995,1752723040712,-462.20652156,0.00018166,2]
[372636996,1752723040721,-460.0,0.00018166,2]
[372636997,1752723040731,-460.0,0.00018166,2]
[372636999,1752723040839,-460.0,0.00018166,2]
[372637000,1752723040849,-460.0,0.00018166,2]
[372637001,1752723040859,-460.0,0.00018166,2]
[372637003,1752723040869,-460.0,0.00018166,2]
[372637005,1752723040878,-460.0,0.00018166,2]
[372637006,1752723040887,-460.0,0.00018166,2]
[372637007,1752723040898,-460.0,0.00018166,2]
[372637008,1752723040908,-460.0,0.00018166,2]
[372637009,1752723040917,-460.0,0.00018166,2]
[372637010,1752723040927,-460.0,0.00018166,2]
[372637011,1752723040936,-460.0,0.00018166,2]
[372637012,1752723040946,-460.0,0.00018166,2]
[372637013,1752723040956,-460.0,0.00018166,2]
[372637014,1752723040965,-460.0,0.00018166,2]
[372637015,1752723040975,-460.0,0.00018166,2]
[372637016,1752723040985,-460.95214093,0.00018166,2]
[372637017,1752723040995,-460.0,0.00018166,2]
[372637018,1752723041004,-460.0,0.00018166,2]
[372637019,1752723041013,-460.0,0.00018166,2]
[372637020,1752723041023,-460.0,0.00018166,2]
[372637021,1752723041033,-460.0,0.00018166,2]
[372637022,1752723041043,-460.0,0.00018166,2]
[372637023,1752723041052,-460.0,0.00018166,2]
[372637024,1752723041062,-460.0,0.00018166,2]
[372637025,1752723041071,-460.0,0.00018166,2]
[372637026,1752723041080,-460.0,0.00018166,2]
[372637027,1752723041090,-460.0,0.00018166,2]
[372637028,1752723041099,-460.0,0.00018166,2]
[372637029,1752723041109,-460.0,0.00018166,2]
[372637030,1752723041119,-460.0,0.00018166,2]
[372637031,1752723041132,-460.0,0.00018166,2]
[372637032,1752723041142,-460.0,0.00018166,2]
[372637033,1752723041152,-460.0,0.00018166,2]
[372637034,1752723041160,-460.0,0.00018166,2]
[372637035,1752723041170,-460.0,0.00018166,2]
[372637036,1752723041179,-463.45438016,0.00018166,2]
[372637037,1752723041189,-464.53117316,0.00018166,2]
[372637038,1752723041198,-460.0,0.00018166,2]
[372637039,1752723041208,-567.12,0.00018171,2]
[372637040,1752723041218,-460.0,0.00018172,2]
[372637041,1752723041227,-460.0,0.00018172,2]
[372637042,1752723041237,-460.0,0.00018172,2]
[372637043,1752723041248,-460.0,0.00018172,2]
[372637044,1752723041258,-460.0,0.00018172,2]
[372637045,1752723041268,-460.0,0.00018172,2]
[372637046,1752723041278,-460.0,0.00018172,2]
[372637047,1752723041287,-460.0,0.00018172,2]
[372637048,1752723041296,-460.0,0.00018172,2]
[372637049,1752723041306,-460.0,0.00018172,2]
[372637050,1752723041315,-460.0,0.00018172,2]
[372637051,1752723041325,-460.0,0.00018172,2]
[372637052,1752723041335,-460.0,0.00018176,2]
[372637053,1752723041345,-460.0,0.00018176,2]
[372637054,1752723041354,-460.0,0.00018176,2]
[372637055,1752723041363,-503.06829235,0.00018176,2]
[372637056,1752723041373,-460.0,0.00018176,2]
[372637057,1752723041382,-151.0,0.00018212,2]
[372637058,1752723041391,-154.75129691,0.00018212,2]
[372637059,1752723041402,-207.4,0.00018212,2]
[372637060,1752723041411,-2574.50487404,0.0001834,2]
[372637061,1752723041421,-412.76349578,0.00018436,2]
[372637062,1752723041429,-460.0,0.00018436,2]
[372637063,1752723041439,-460.0,0.00018436,2]
[372637064,1752723041449,-460.0,0.00018436,2]
[372637065,1752723041458,-460.0,0.00018436,2]
[372637066,1752723041467,-460.0,0.00018436,2]
[372637067,1752723041477,-460.0,0.00018436,2]
[372637068,1752723041486,-460.0,0.00018436,2]
[372637069,1752723041497,-473.71,0.00018436,2]
[372637070,1752723041506,-2785.57,0.00018436,2]
[372637071,1752723041515,-460.0,0.00018436,2]
[372637072,1752723041525,-381.00069299,0.00018437,2]
[372637073,1752723041535,-460.0,0.00018437,2]
[372637074,1752723041545,-460.0,0.00018437,2]
[372637075,1752723041554,-460.0,0.00018437,2]
[372637076,1752723041563,-460.0,0.00018437,2]
[372637077,1752723041573,-460.0,0.00018437,2]
[372637078,1752723041582,-460.0,0.00018437,2]
[372637079,1752723041592,-460.0,0.00018437,2]
[372637080,1752723041602,-460.0,0.00018437,2]
[372637081,1752723041611,-460.0,0.00018437,2]
[372637082,1752723041620,-460.0,0.00018437,2]
[372637083,1752723041630,-460.0,0.00018437,2]
[372637084,1752723041639,-460.0,0.00018437,2]
[372637086,1752723041649,-460.0,0.00018437,2]
[372637088,1752723041658,-460.0,0.00018437,2]
[372637090,1752723041667,-2045.43,0.00018437,2]
[372637091,1752723041677,-460.0,0.00018437,2]
[372637093,1752723041686,-627.8,0.00018437,2]
[372637095,1752723041696,-395.5141809,0.00018437,2]
[372637096,1752723041705,-460.0,0.00018437,2]
[372637098,1752723041714,-6648.01,0.00018437,2]
[372637099,1752723041725,-951.3,0.00018437,2]
[372637100,1752723041734,-460.0,0.00018437,2]
[372637101,1752723041745,-460.0,0.00018437,2]
[372637102,1752723041754,-460.0,0.00018437,2]
[372637103,1752723041763,-460.0,0.00018437,2]
[372637104,1752723041773,-460.0,0.00018437,2]
[372637105,1752723041782,-3652.79,0.00018437,2]
[372637106,1752723041791,-460.0,0.00018437,2]
[372637107,1752723041800,-845.11,0.00018437,2]
[372637108,1752723041810,-1035.96,0.00018437,2]
[372637109,1752723041819,-460.0,0.00018437,2]
[372637110,1752723041829,-460.0,0.00018437,2]
[372637112,1752723041838,-460.0,0.00018437,2]
[372637113,1752723041848,-460.0,0.00018437,2]
[372637114,1752723041858,-460.0,0.00018437,2]
[372637115,1752723041867,-620.11,0.00018437,2]
[372637117,1752723041876,-684.65,0.00018437,2]
[372637119,1752723041886,-3024.44,0.00018437,2]
[372637120,1752723041895,-520.6269961,0.00018437,2]
[372637121,1752723041905,-460.0,0.00018437,2]
[372637122,1752723041914,-460.0,0.00018437,2]
[372637123,1752723041924,-3191.81,0.00018437,2]
[372637124,1752723041935,-759.64,0.00018437,2]
[372637125,1752723041944,-460.0,0.00018437,2]
[372637126,1752723041953,-1269.72,0.00018437,2]
[372637127,1752723041963,-460.0,0.00018437,2]
[372637128,1752723041972,-460.0,0.00018437,2]
[372637129,1752723041982,-784.55,0.00018437,2]
[372637130,1752723041992,-460.0,0.00018437,2]
[372637131,1752723042002,-460.0,0.00018437,2]
[372637132,1752723042011,-460.0,0.00018437,2]
[372637133,1752723042021,-460.0,0.00018437,2]
[372637134,1752723042031,-460.0,0.00018437,2]
[372637135,1752723042040,-460.0,0.00018437,2]
[372637136,1752723042050,-2191.17,0.00018437,2]
[372637137,1752723042060,-852.47,0.00018437,2]
[372637138,1752723042069,-650.53,0.00018437,2]
[372637139,1752723042079,-500.0,0.00018438,2]
[372637140,1752723042089,-151.0,0.00018438,2]
[372637141,1752723042098,-500.0,0.00018438,2]
[372637142,1752723042108,-460.0,0.00018438,2]
[372637143,1752723042117,-473.26,0.00018438,2]
[372637144,1752723042132,-460.0,0.00018438,2]
[372637145,1752723042141,-460.0,0.00018438,2]
[372637146,1752723042150,-460.0,0.00018438,2]
[372637147,1752723042159,-460.0,0.00018438,2]
[372637148,1752723042169,-460.0,0.00018438,2]
[372637149,1752723042179,-709.98,0.00018438,2]
[372637150,1752723042188,-471.26017669,0.00018438,2]
[372637151,1752723042197,-467.13963551,0.00018438,2]
[372637152,1752723042209,-716.64,0.00018438,2]
[372637153,1752723042218,-158.25,0.00018438,2]
[372637154,1752723042228,-523.07,0.00018438,2]
[372637155,1752723042237,-460.0,0.00018438,2]
[372637156,1752723042249,-599.92,0.00018438,2]
[372637157,1752723042259,-821.65,0.00018438,2]
[372637158,1752723042268,-460.0,0.00018438,2]
[372637159,1752723042278,-1054.76,0.00018438,2]
[372637160,1752723042287,-460.0,0.00018438,2]
[372637161,1752723042297,-460.0,0.00018438,2]
[372637162,1752723042306,-460.0,0.00018438,2]
[372637163,1752723042316,-460.0,0.00018438,2]
[372637164,1752723042325,-460.0,0.00018438,2]
[372637165,1752723042335,-460.0,0.00018438,2]
[372637166,1752723042345,-465.3072291,0.00018438,2]
[372637167,1752723042354,-460.0,0.00018438,2]
[372637168,1752723042364,-877.34,0.00018438,2]
[372637169,1752723042373,-460.0,0.00018438,2]
[372637170,1752723042383,-539.33,0.00018438,2]
[372637171,1752723042392,-460.0,0.00018438,2]
[372637172,1752723042401,-460.0,0.00018438,2]
[372637173,1752723042411,-460.0,0.00018438,2]
[372637174,1752723042420,-460.0,0.00018438,2]
[372637175,1752723042430,-460.0,0.00018438,2]
[372637176,1752723042439,-460.0,0.00018438,2]
[372637177,1752723042449,-478.0869923,0.00018438,2]
[372637178,1752723042459,-658.6,0.00018438,2]
[372637179,1752723042469,-4365.85,0.00018438,2]
[372637180,1752723042478,-460.0,0.00018438,2]
[372637181,1752723042488,-460.0,0.00018438,2]
[372637182,1752723042499,-460.0,0.00018438,2]
[372637183,1752723042508,-460.0,0.00018438,2]
[372637184,1752723042517,-460.0,0.00018438,2]
[372637185,1752723042527,-465.29395356,0.00018438,2]
[372637186,1752723042537,-460.0,0.00018438,2]
[372637187,1752723042547,-460.0,0.00018438,2]
[372637188,1752723042556,-601.21,0.00018438,2]
[372637189,1752723042565,-1353.14,0.00018438,2]
[372637190,1752723042575,-460.0,0.00018438,2]
[372637191,1752723042583,-595.98,0.00018438,2]
[372637192,1752723042593,-460.0,0.00018438,2]
[372637193,1752723042603,-460.0,0.00018438,2]
[372637194,1752723042613,-460.0,0.00018438,2]
[372637195,1752723042622,-460.0,0.00018438,2]
[372637196,1752723042632,-2332.6,0.00018438,2]
[372637197,1752723042641,-460.0,0.00018438,2]
[372637198,1752723042651,-609.05,0.00018438,2]
[372637199,1752723042661,-460.0,0.00018438,2]
[372637200,1752723042671,-460.0,0.00018438,2]
[372637201,1752723042681,-5166.37,0.00018438,2]